[Event "January 9 Late 2024"]
[Site "https://www.chess.com"]
[Date "2024.01.09"]
[Round "1"]
[White "Ferriz Barrios, Andres"]
[Black "Filipets, Egor"]
[Result "0-1"]
[Board "207"]
[TimeControl "180+1"]
[WhiteFideId "5104467"]
[BlackFideId "13503928"]
[WhiteElo "2208"]
[BlackElo "2591"]
[WhiteTeam "MEX"]
[BlackTeam "BLR"]
[WhiteClock "0:02:08"]
[BlackClock "0:01:52"]

1. e4 {[%clk 0:02:58]}  d6 {[%clk 0:02:58]} 2. d4 {[%clk 0:02:56]}  Nf6 {[%clk 0:02:59]} 3. Nc3 {[%clk 0:02:57]}  g6 {[%clk 0:02:59]} 4. Bf4 {[%clk 0:02:57]}  c6 {[%clk 0:02:58]} 5. Qd2 {[%clk 0:02:57]}  b5 {[%clk 0:02:58]} 6. f3 {[%clk 0:02:56]}  Nbd7 {[%clk 0:02:55]} 7. O-O-O {[%clk 0:02:55]}  Qa5 {[%clk 0:02:47]} 8. Kb1 {[%clk 0:02:54]}  b4 {[%clk 0:02:48]} 9. Nce2 {[%clk 0:02:54]}  Nb6 {[%clk 0:02:48]} 10. Ng3 {[%clk 0:02:53]}  Be6 {[%clk 0:02:48]} 11. b3 {[%clk 0:02:49]}  h5 {[%clk 0:02:48]} 12. N1e2 {[%clk 0:02:43]}  h4 {[%clk 0:02:46]} 13. Nc1 {[%clk 0:02:37]}  hxg3 {[%clk 0:02:44]} 14. Bxg3 {[%clk 0:02:38]}  Bh6 {[%clk 0:02:41]} 15. Bf4 {[%clk 0:02:38]}  Bxf4 {[%clk 0:02:39]} 16. Qxf4 {[%clk 0:02:39]}  O-O-O {[%clk 0:02:38]} 17. Nd3 {[%clk 0:02:31]}  c5 {[%clk 0:02:30]} 18. dxc5 {[%clk 0:02:28]}  dxc5 {[%clk 0:02:31]} 19. Qe5 {[%clk 0:02:24]}  Nfd7 {[%clk 0:02:31]} 20. Qg5 {[%clk 0:02:22]}  Rde8 {[%clk 0:02:16]} 21. Be2 {[%clk 0:02:21]}  Rh5 {[%clk 0:02:16]} 22. Qe3 {[%clk 0:02:20]}  c4 {[%clk 0:02:14]} 23. Nb2 {[%clk 0:02:20]}  c3 {[%clk 0:02:12]} 24. Nd3 {[%clk 0:02:18]}  Qa3 {[%clk 0:01:56]} 25. Qd4 {[%clk 0:02:18]}  Ra5 {[%clk 0:01:52]} 26. Nxb4 {[%clk 0:02:08]}  Qb2# {[%clk 0:01:52]} 0-1

[Event "January 9 Late 2024"]
[Site "https://www.chess.com"]
[Date "2024.01.09"]
[Round "1"]
[White "Avila Bautista, Roberto Al"]
[Black "Piscicelli, Daniel Orlando"]
[Result "1-0"]
[Board "210"]
[TimeControl "180+1"]
[WhiteFideId "5119987"]
[BlackFideId "101958"]
[WhiteElo "2585"]
[BlackElo "2188"]
[WhiteTeam "MEX"]
[BlackTeam "ARG"]
[WhiteClock "0:01:36"]
[BlackClock "0:00:08"]

1. Nf3 {[%clk 0:02:59]}  Nf6 {[%clk 0:02:58]} 2. b3 {[%clk 0:02:56]}  g6 {[%clk 0:02:54]} 3. Bb2 {[%clk 0:02:55]}  Bg7 {[%clk 0:02:55]} 4. c4 {[%clk 0:02:55]}  O-O {[%clk 0:02:54]} 5. g3 {[%clk 0:02:55]}  c5 {[%clk 0:02:51]} 6. Bg2 {[%clk 0:02:54]}  Nc6 {[%clk 0:02:51]} 7. O-O {[%clk 0:02:54]}  d6 {[%clk 0:02:51]} 8. Nc3 {[%clk 0:02:54]}  Bf5 {[%clk 0:02:46]} 9. d4 {[%clk 0:02:54]}  cxd4 {[%clk 0:02:37]} 10. Nxd4 {[%clk 0:02:55]}  Nxd4 {[%clk 0:02:25]} 11. Qxd4 {[%clk 0:02:52]}  Qc7 {[%clk 0:02:12]} 12. Nd5 {[%clk 0:02:49]}  Qd7 {[%clk 0:02:05]} 13. Rfd1 {[%clk 0:02:42]}  Nh5 {[%clk 0:01:57]} 14. Qd2 {[%clk 0:02:38]}  Bxb2 {[%clk 0:01:54]} 15. Qxb2 {[%clk 0:02:39]}  Be6 {[%clk 0:01:21]} 16. c5 {[%clk 0:02:12]}  Bxd5 {[%clk 0:01:07]} 17. Rxd5 {[%clk 0:01:56]}  Nf6 {[%clk 0:01:05]} 18. Rd2 {[%clk 0:01:56]}  Qe6 {[%clk 0:00:56]} 19. cxd6 {[%clk 0:01:53]}  exd6 {[%clk 0:00:57]} 20. Bxb7 {[%clk 0:01:52]}  Rab8 {[%clk 0:00:55]} 21. Bf3 {[%clk 0:01:51]}  Rfd8 {[%clk 0:00:53]} 22. Rad1 {[%clk 0:01:50]}  Rb6 {[%clk 0:00:49]} 23. h4 {[%clk 0:01:46]}  Nd7 {[%clk 0:00:49]} 24. Qa3 {[%clk 0:01:40]}  a6 {[%clk 0:00:42]} 25. Rxd6 {[%clk 0:01:38]}  Rxd6 {[%clk 0:00:41]} 26. Qxd6 {[%clk 0:01:37]}  Qxd6 {[%clk 0:00:07]} 27. Rxd6 {[%clk 0:01:38]}  Kf8 {[%clk 0:00:07]} 28. Bc6 {[%clk 0:01:36]}  Ke7 {[%clk 0:00:07]} 29. Rxd7+ {[%clk 0:01:37]}  Rxd7 {[%clk 0:00:07]} 30. Bxd7 {[%clk 0:01:37]}  Kxd7 {[%clk 0:00:08]} 31. e4 {[%clk 0:01:38]}  Kd6 {[%clk 0:00:07]} 32. f4 {[%clk 0:01:38]}  Kc5 {[%clk 0:00:07]} 33. Kf2 {[%clk 0:01:38]}  Kd4 {[%clk 0:00:07]} 34. Kf3 {[%clk 0:01:38]}  a5 {[%clk 0:00:06]} 35. e5 {[%clk 0:01:36]}  Kc3 {[%clk 0:00:03]} 36. g4 {[%clk 0:01:32]}  Kb2 {[%clk 0:00:03]} 37. f5 {[%clk 0:01:32]}  Kxa2 {[%clk 0:00:04]} 38. e6 {[%clk 0:01:33]}  fxe6 {[%clk 0:00:03]} 39. fxe6 {[%clk 0:01:34]}  Kxb3 {[%clk 0:00:03]} 40. e7 {[%clk 0:01:34]}  a4 {[%clk 0:00:03]} 41. e8=Q {[%clk 0:01:35]}  a3 {[%clk 0:00:04]} 42. Qh8 {[%clk 0:01:34]}  Ka2 {[%clk 0:00:05]} 43. Qxh7 {[%clk 0:01:33]}  Kb1 {[%clk 0:00:06]} 44. Qxg6+ {[%clk 0:01:33]}  Kb2 {[%clk 0:00:04]} 45. Qf6+ {[%clk 0:01:33]}  Kb1 {[%clk 0:00:04]} 46. Qa6 {[%clk 0:01:33]}  a2 {[%clk 0:00:05]} 47. Qxa2+ {[%clk 0:01:33]}  Kxa2 {[%clk 0:00:05]} 48. h5 {[%clk 0:01:34]}  Kb3 {[%clk 0:00:05]} 49. h6 {[%clk 0:01:35]}  Kc4 {[%clk 0:00:06]} 50. h7 {[%clk 0:01:36]}  Kd5 {[%clk 0:00:07]} 51. h8=Q {[%clk 0:01:37]}  Ke6 {[%clk 0:00:07]} 52. Qh5 {[%clk 0:01:37]}  Kf6 {[%clk 0:00:08]} 53. Qf5+ {[%clk 0:01:37]}  Kg7 {[%clk 0:00:09]} 54. g5 {[%clk 0:01:35]}  Kh8 {[%clk 0:00:07]} 55. Qd7 {[%clk 0:01:35]}  Kg8 {[%clk 0:00:07]} 56. g6 {[%clk 0:01:36]}  Kh8 {[%clk 0:00:08]} 57. Qh7# {[%clk 0:01:36]} 1-0

[Event "January 9 Late 2024"]
[Site "https://www.chess.com"]
[Date "2024.01.09"]
[Round "1"]
[White "Carvajal Gorgona, Jonathan"]
[Black "Olenik Campa, Rudi"]
[Result "1/2-1/2"]
[Board "211"]
[TimeControl "180+1"]
[WhiteFideId "6500625"]
[BlackFideId "14633264"]
[WhiteElo "2177"]
[BlackElo "2585"]
[WhiteTeam "CRC"]
[BlackTeam "SLO"]
[WhiteClock "0:00:05"]
[BlackClock "0:00:12"]

1. e4 {[%clk 0:03:00]}  c5 {[%clk 0:02:58]} 2. Nc3 {[%clk 0:02:59]}  Nc6 {[%clk 0:02:56]} 3. f4 {[%clk 0:02:59]}  g6 {[%clk 0:02:56]} 4. Nf3 {[%clk 0:02:59]}  Bg7 {[%clk 0:02:56]} 5. Bb5 {[%clk 0:02:59]}  Nd4 {[%clk 0:02:55]} 6. Bd3 {[%clk 0:02:59]}  d6 {[%clk 0:02:54]} 7. Nxd4 {[%clk 0:02:57]}  cxd4 {[%clk 0:02:54]} 8. Ne2 {[%clk 0:02:58]}  e5 {[%clk 0:02:54]} 9. O-O {[%clk 0:02:55]}  Ne7 {[%clk 0:02:54]} 10. c3 {[%clk 0:02:55]}  O-O {[%clk 0:02:53]} 11. cxd4 {[%clk 0:02:50]}  Qb6 {[%clk 0:02:54]} 12. Kh1 {[%clk 0:02:49]}  exd4 {[%clk 0:02:50]} 13. Bc4 {[%clk 0:02:34]}  Be6 {[%clk 0:02:47]} 14. Bxe6 {[%clk 0:02:22]}  fxe6 {[%clk 0:02:47]} 15. d3 {[%clk 0:02:22]}  d5 {[%clk 0:02:45]} 16. Qb3 {[%clk 0:02:18]}  Qxb3 {[%clk 0:02:37]} 17. axb3 {[%clk 0:02:19]}  a6 {[%clk 0:02:37]} 18. Bd2 {[%clk 0:01:56]}  Rac8 {[%clk 0:02:31]} 19. Rac1 {[%clk 0:01:47]}  dxe4 {[%clk 0:02:16]} 20. dxe4 {[%clk 0:01:46]}  Rfd8 {[%clk 0:02:11]} 21. Rxc8 {[%clk 0:01:43]}  Rxc8 {[%clk 0:02:12]} 22. Rc1 {[%clk 0:01:43]}  Rxc1+ {[%clk 0:02:06]} 23. Nxc1 {[%clk 0:01:44]}  Nc6 {[%clk 0:01:59]} 24. Nd3 {[%clk 0:01:41]}  b6 {[%clk 0:01:59]} 25. g4 {[%clk 0:01:40]}  Kf7 {[%clk 0:01:55]} 26. Kg2 {[%clk 0:01:40]}  Bf8 {[%clk 0:01:36]} 27. Kf3 {[%clk 0:01:33]}  Bc5 {[%clk 0:01:13]} 28. h4 {[%clk 0:01:16]}  h5 {[%clk 0:01:11]} 29. f5 {[%clk 0:00:22]}  exf5 {[%clk 0:00:48]} 30. exf5 {[%clk 0:00:22]}  gxf5 {[%clk 0:00:48]} 31. gxf5 {[%clk 0:00:22]}  Kf6 {[%clk 0:00:47]} 32. Ke4 {[%clk 0:00:22]}  Ne7 {[%clk 0:00:33]} 33. Bg5+ {[%clk 0:00:22]}  Kf7 {[%clk 0:00:33]} 34. Bxe7 {[%clk 0:00:21]}  Bxe7 {[%clk 0:00:34]} 35. Kxd4 {[%clk 0:00:20]}  Bxh4 {[%clk 0:00:34]} 36. Ke5 {[%clk 0:00:14]}  Bf6+ {[%clk 0:00:34]} 37. Kf4 {[%clk 0:00:13]}  Ke7 {[%clk 0:00:30]} 38. Nb4 {[%clk 0:00:13]}  Bxb2 {[%clk 0:00:26]} 39. Nd5+ {[%clk 0:00:11]}  Kf7 {[%clk 0:00:24]} 40. Nxb6 {[%clk 0:00:12]}  Bc1+ {[%clk 0:00:24]} 41. Ke4 {[%clk 0:00:11]}  h4 {[%clk 0:00:24]} 42. Kf3 {[%clk 0:00:08]}  h3 {[%clk 0:00:18]} 43. Kg3 {[%clk 0:00:08]}  Kf6 {[%clk 0:00:18]} 44. Kxh3 {[%clk 0:00:08]}  Kxf5 {[%clk 0:00:18]} 45. Nd7 {[%clk 0:00:05]}  Bd2 {[%clk 0:00:12]} 46. Nb8 {[%clk 0:00:04]}  a5 {[%clk 0:00:12]} 47. Nc6 {[%clk 0:00:05]}  Ke6 {[%clk 0:00:12]} 48. Nxa5 {[%clk 0:00:04]}  Bxa5 {[%clk 0:00:13]} 49. b4 {[%clk 0:00:05]}  Bxb4 {[%clk 0:00:12]} 1/2-1/2

[Event "January 9 Late 2024"]
[Site "https://www.chess.com"]
[Date "2024.01.09"]
[Round "1"]
[White "Kovacsy, Barnabas"]
[Black "Ferrufino, Boris"]
[Result "1-0"]
[Board "212"]
[TimeControl "180+1"]
[WhiteFideId "769290"]
[BlackFideId "3300170"]
[WhiteElo "2584"]
[BlackElo "2173"]
[WhiteTeam "HUN"]
[BlackTeam "BOL"]
[WhiteClock "0:00:57"]
[BlackClock "0:00:08"]

1. e4 {[%clk 0:02:59]}  c5 {[%clk 0:02:48]} 2. Nf3 {[%clk 0:02:59]}  d6 {[%clk 0:02:49]} 3. d4 {[%clk 0:02:59]}  cxd4 {[%clk 0:02:49]} 4. Nxd4 {[%clk 0:03:00]}  Nf6 {[%clk 0:02:50]} 5. f3 {[%clk 0:03:01]}  e5 {[%clk 0:02:49]} 6. Nb3 {[%clk 0:03:01]}  d5 {[%clk 0:02:50]} 7. Bg5 {[%clk 0:02:59]}  Be6 {[%clk 0:02:48]} 8. Bxf6 {[%clk 0:02:52]}  gxf6 {[%clk 0:02:47]} 9. exd5 {[%clk 0:02:51]}  Qxd5 {[%clk 0:02:45]} 10. Qxd5 {[%clk 0:02:50]}  Bxd5 {[%clk 0:02:46]} 11. Nc3 {[%clk 0:02:51]}  Bb4 {[%clk 0:02:46]} 12. O-O-O {[%clk 0:02:49]}  Bxb3 {[%clk 0:02:18]} 13. axb3 {[%clk 0:02:48]}  Bxc3 {[%clk 0:02:18]} 14. bxc3 {[%clk 0:02:48]}  Ke7 {[%clk 0:02:18]} 15. Bc4 {[%clk 0:02:40]}  Nc6 {[%clk 0:02:14]} 16. Rd2 {[%clk 0:02:38]}  Rad8 {[%clk 0:02:13]} 17. Rhd1 {[%clk 0:02:38]}  Rxd2 {[%clk 0:02:13]} 18. Rxd2 {[%clk 0:02:38]}  h5 {[%clk 0:02:13]} 19. b4 {[%clk 0:02:33]}  a6 {[%clk 0:02:13]} 20. Re2 {[%clk 0:02:13]}  f5 {[%clk 0:02:07]} 21. Bd3 {[%clk 0:02:11]}  Kf6 {[%clk 0:01:58]} 22. Kb2 {[%clk 0:02:03]}  h4 {[%clk 0:01:41]} 23. Bc4 {[%clk 0:02:02]}  Rd8 {[%clk 0:01:32]} 24. Kc1 {[%clk 0:01:56]}  Ne7 {[%clk 0:01:26]} 25. Bb3 {[%clk 0:01:48]}  Nc6 {[%clk 0:01:19]} 26. Ba4 {[%clk 0:01:46]}  Ne7 {[%clk 0:01:16]} 27. c4 {[%clk 0:01:44]}  Rc8 {[%clk 0:01:15]} 28. Bb3 {[%clk 0:01:43]}  Nc6 {[%clk 0:01:15]} 29. c3 {[%clk 0:01:43]}  Rd8 {[%clk 0:01:15]} 30. Kc2 {[%clk 0:01:43]}  f4 {[%clk 0:01:14]} 31. c5 {[%clk 0:01:40]}  Ne7 {[%clk 0:01:13]} 32. Rd2 {[%clk 0:01:35]}  Rxd2+ {[%clk 0:01:08]} 33. Kxd2 {[%clk 0:01:36]}  Nc6 {[%clk 0:01:00]} 34. Bd5 {[%clk 0:01:36]}  Ke7 {[%clk 0:01:00]} 35. Kd3 {[%clk 0:01:28]}  f5 {[%clk 0:01:00]} 36. Kc4 {[%clk 0:01:19]}  Kf6 {[%clk 0:00:59]} 37. b5 {[%clk 0:01:16]}  axb5+ {[%clk 0:00:53]} 38. Kxb5 {[%clk 0:01:16]}  Nd8 {[%clk 0:00:43]} 39. Kb6 {[%clk 0:01:16]}  e4 {[%clk 0:00:35]} 40. fxe4 {[%clk 0:01:16]}  Ke5 {[%clk 0:00:35]} 41. Bxb7 {[%clk 0:01:10]}  fxe4 {[%clk 0:00:28]} 42. c6 {[%clk 0:01:09]}  Nxc6 {[%clk 0:00:27]} 43. Bxc6 {[%clk 0:01:10]}  h3 {[%clk 0:00:27]} 44. gxh3 {[%clk 0:01:01]}  f3 {[%clk 0:00:27]} 45. Kc5 {[%clk 0:00:59]}  Kf4 {[%clk 0:00:22]} 46. Kd4 {[%clk 0:00:58]}  e3 {[%clk 0:00:22]} 47. Kd3 {[%clk 0:00:57]}  e2 {[%clk 0:00:08]} 48. Kd2 {[%clk 0:00:57]} 1-0

[Event "January 9 Late 2024"]
[Site "https://www.chess.com"]
[Date "2024.01.09"]
[Round "1"]
[White "Varela La Madrid, Maria"]
[Black "Rodriguez Fontecha, Marcos"]
[Result "0-1"]
[Board "213"]
[TimeControl "180+1"]
[WhiteFideId "3903346"]
[BlackFideId "2256576"]
[WhiteElo "2171"]
[BlackElo "2578"]
[WhiteTeam "VEN"]
[BlackTeam "ESP"]
[WhiteClock "0:01:01"]
[BlackClock "0:00:13"]

1. d4 {[%clk 0:03:00]}  d5 {[%clk 0:02:57]} 2. Bf4 {[%clk 0:03:01]}  Nf6 {[%clk 0:02:56]} 3. Nf3 {[%clk 0:03:01]}  c5 {[%clk 0:02:57]} 4. e3 {[%clk 0:03:02]}  Nc6 {[%clk 0:02:57]} 5. c3 {[%clk 0:03:02]}  Qb6 {[%clk 0:02:58]} 6. Qb3 {[%clk 0:02:54]}  c4 {[%clk 0:02:58]} 7. Qc2 {[%clk 0:02:52]}  Bf5 {[%clk 0:02:58]} 8. Qc1 {[%clk 0:02:52]}  e6 {[%clk 0:02:58]} 9. Be2 {[%clk 0:02:52]}  h6 {[%clk 0:02:58]} 10. Nbd2 {[%clk 0:02:52]}  Qd8 {[%clk 0:02:58]} 11. b3 {[%clk 0:02:52]}  b5 {[%clk 0:02:55]} 12. O-O {[%clk 0:02:50]}  Be7 {[%clk 0:02:53]} 13. a4 {[%clk 0:02:49]}  a6 {[%clk 0:02:50]} 14. axb5 {[%clk 0:02:43]}  axb5 {[%clk 0:02:51]} 15. bxc4 {[%clk 0:02:40]}  bxc4 {[%clk 0:02:50]} 16. Rxa8 {[%clk 0:02:36]}  Qxa8 {[%clk 0:02:50]} 17. Qb2 {[%clk 0:02:36]}  O-O {[%clk 0:02:33]} 18. Ra1 {[%clk 0:02:36]}  Qc8 {[%clk 0:02:33]} 19. Qb6 {[%clk 0:02:31]}  Nd7 {[%clk 0:02:31]} 20. Qa6 {[%clk 0:02:24]}  f6 {[%clk 0:02:19]} 21. e4 {[%clk 0:02:13]}  dxe4 {[%clk 0:02:17]} 22. Ne1 {[%clk 0:02:07]}  Qxa6 {[%clk 0:02:17]} 23. Rxa6 {[%clk 0:02:07]}  e5 {[%clk 0:02:12]} 24. Rxc6 {[%clk 0:02:02]}  exf4 {[%clk 0:02:12]} 25. Bxc4+ {[%clk 0:02:02]}  Kh7 {[%clk 0:02:12]} 26. Rc7 {[%clk 0:02:01]}  Rb8 {[%clk 0:02:02]} 27. Kf1 {[%clk 0:01:50]}  e3 {[%clk 0:01:52]} 28. fxe3 {[%clk 0:01:49]}  fxe3 {[%clk 0:01:53]} 29. Ndf3 {[%clk 0:01:49]}  Rb2 {[%clk 0:01:47]} 30. Bd3 {[%clk 0:01:48]}  Rf2+ {[%clk 0:01:01]} 31. Kg1 {[%clk 0:01:47]}  Bxd3 {[%clk 0:00:45]} 32. Nxd3 {[%clk 0:01:47]}  Rd2 {[%clk 0:00:41]} 33. Nde1 {[%clk 0:01:45]}  Nb6 {[%clk 0:00:28]} 34. Rxe7 {[%clk 0:01:45]}  Nd5 {[%clk 0:00:29]} 35. Re4 {[%clk 0:01:42]}  Re2 {[%clk 0:00:19]} 36. c4 {[%clk 0:01:39]}  Nc3 {[%clk 0:00:19]} 37. Re7 {[%clk 0:01:39]}  Kg8 {[%clk 0:00:17]} 38. d5 {[%clk 0:01:37]}  Kf8 {[%clk 0:00:16]} 39. d6 {[%clk 0:01:37]}  Rd2 {[%clk 0:00:17]} 40. Rxe3 {[%clk 0:01:37]}  Ne2+ {[%clk 0:00:14]} 41. Rxe2 {[%clk 0:01:37]}  Rxe2 {[%clk 0:00:14]} 42. c5 {[%clk 0:01:38]}  Ke8 {[%clk 0:00:11]} 43. Nd3 {[%clk 0:01:37]}  Kd7 {[%clk 0:00:11]} 44. Nd4 {[%clk 0:01:36]}  Rd2 {[%clk 0:00:11]} 45. c6+ {[%clk 0:01:34]}  Kxd6 {[%clk 0:00:10]} 46. Nf5+ {[%clk 0:01:32]}  Kxc6 {[%clk 0:00:09]} 47. Nf4 {[%clk 0:01:29]}  g5 {[%clk 0:00:07]} 48. Nh5 {[%clk 0:01:29]}  Kd5 {[%clk 0:00:05]} 49. h3 {[%clk 0:01:01]}  Ke5 {[%clk 0:00:05]} 50. Nfg3 {[%clk 0:00:59]}  f5 {[%clk 0:00:05]} 51. Nf1 {[%clk 0:00:58]}  Ra2 {[%clk 0:00:05]} 52. Nhg3 {[%clk 0:00:57]}  f4 {[%clk 0:00:06]} 53. Ne2 {[%clk 0:00:57]}  Rxe2 {[%clk 0:00:06]} 54. Nh2 {[%clk 0:00:57]}  Ra2 {[%clk 0:00:06]} 55. Ng4+ {[%clk 0:00:57]}  Ke4 {[%clk 0:00:06]} 56. Nxh6 {[%clk 0:00:58]}  f3 {[%clk 0:00:07]} 57. Ng4 {[%clk 0:00:55]}  Rxg2+ {[%clk 0:00:05]} 58. Kf1 {[%clk 0:00:55]}  Rxg4 {[%clk 0:00:06]} 59. hxg4 {[%clk 0:00:55]}  Kf4 {[%clk 0:00:07]} 60. Kf2 {[%clk 0:00:55]}  Kxg4 {[%clk 0:00:08]} 61. Ke3 {[%clk 0:00:55]}  Kg3 {[%clk 0:00:08]} 62. Ke4 {[%clk 0:00:56]}  f2 {[%clk 0:00:09]} 63. Ke3 {[%clk 0:00:56]}  f1=Q {[%clk 0:00:10]} 64. Ke4 {[%clk 0:00:57]}  Qf7 {[%clk 0:00:10]} 65. Ke3 {[%clk 0:00:58]}  Qe6+ {[%clk 0:00:10]} 66. Kd4 {[%clk 0:00:58]}  Kf3 {[%clk 0:00:11]} 67. Kc3 {[%clk 0:00:58]}  g4 {[%clk 0:00:12]} 68. Kb4 {[%clk 0:00:59]}  g3 {[%clk 0:00:12]} 69. Kc5 {[%clk 0:01:00]}  g2 {[%clk 0:00:13]} 70. Kb5 {[%clk 0:01:00]}  g1=Q {[%clk 0:00:14]} 71. Ka4 {[%clk 0:01:01]}  Qb1 {[%clk 0:00:13]} 72. Ka3 {[%clk 0:01:01]}  Qeb3# {[%clk 0:00:13]} 0-1

[Event "January 9 Late 2024"]
[Site "https://www.chess.com"]
[Date "2024.01.09"]
[Round "1"]
[White "Banerjee, Supratit"]
[Black "Vila Dupla, Aurelio"]
[Result "1-0"]
[Board "216"]
[TimeControl "180+1"]
[WhiteFideId "2410079"]
[BlackFideId "2203383"]
[WhiteElo "2577"]
[BlackElo "2166"]
[WhiteTeam "SCO"]
[BlackTeam "ESP"]
[WhiteClock "0:00:55"]
[BlackClock "0:00:00"]

1. e4 {[%clk 0:02:55]}  c5 {[%clk 0:02:59]} 2. c3 {[%clk 0:02:54]}  d5 {[%clk 0:02:58]} 3. exd5 {[%clk 0:02:55]}  Qxd5 {[%clk 0:02:58]} 4. d4 {[%clk 0:02:55]}  Nf6 {[%clk 0:02:57]} 5. Nf3 {[%clk 0:02:54]}  Bg4 {[%clk 0:02:56]} 6. Nbd2 {[%clk 0:02:53]}  Nc6 {[%clk 0:02:41]} 7. Bc4 {[%clk 0:02:52]}  Bxf3 {[%clk 0:02:42]} 8. Qb3 {[%clk 0:02:51]}  Na5 {[%clk 0:02:27]} 9. Qa4+ {[%clk 0:01:57]}  Qd7 {[%clk 0:02:24]} 10. Qxd7+ {[%clk 0:01:56]}  Nxd7 {[%clk 0:02:18]} 11. gxf3 {[%clk 0:01:56]}  Nxc4 {[%clk 0:02:13]} 12. Nxc4 {[%clk 0:01:55]}  cxd4 {[%clk 0:02:14]} 13. cxd4 {[%clk 0:01:55]}  g6 {[%clk 0:02:04]} 14. O-O {[%clk 0:01:49]}  Bg7 {[%clk 0:02:00]} 15. Rd1 {[%clk 0:01:49]}  Rc8 {[%clk 0:01:54]} 16. Na3 {[%clk 0:01:42]}  Nb6 {[%clk 0:01:44]} 17. Be3 {[%clk 0:01:40]}  Nd5 {[%clk 0:01:43]} 18. Rac1 {[%clk 0:01:37]}  O-O {[%clk 0:01:43]} 19. Nc4 {[%clk 0:01:33]}  b6 {[%clk 0:01:33]} 20. Nd2 {[%clk 0:01:30]}  Rfd8 {[%clk 0:01:29]} 21. Ne4 {[%clk 0:01:25]}  h6 {[%clk 0:01:15]} 22. Nc3 {[%clk 0:01:20]}  Nxe3 {[%clk 0:01:06]} 23. fxe3 {[%clk 0:01:19]}  e5 {[%clk 0:01:07]} 24. d5 {[%clk 0:01:18]}  e4 {[%clk 0:00:58]} 25. fxe4 {[%clk 0:01:15]}  Bxc3 {[%clk 0:00:56]} 26. Rxc3 {[%clk 0:01:14]}  Rxc3 {[%clk 0:00:50]} 27. bxc3 {[%clk 0:01:14]}  f6 {[%clk 0:00:51]} 28. Kf2 {[%clk 0:01:13]}  Kf7 {[%clk 0:00:51]} 29. c4 {[%clk 0:01:12]}  Ke7 {[%clk 0:00:50]} 30. Kf3 {[%clk 0:01:08]}  Kd6 {[%clk 0:00:49]} 31. Ke2 {[%clk 0:01:07]}  Ke5 {[%clk 0:00:47]} 32. Kd3 {[%clk 0:01:06]}  f5 {[%clk 0:00:31]} 33. exf5 {[%clk 0:01:05]}  gxf5 {[%clk 0:00:32]} 34. a4 {[%clk 0:01:05]}  Rg8 {[%clk 0:00:28]} 35. a5 {[%clk 0:01:02]}  bxa5 {[%clk 0:00:19]} 36. Ra1 {[%clk 0:01:01]}  Rg2 {[%clk 0:00:11]} 37. Rxa5 {[%clk 0:01:01]}  Rxh2 {[%clk 0:00:12]} 38. Rxa7 {[%clk 0:01:00]}  Rh3 {[%clk 0:00:12]} 39. Re7+ {[%clk 0:00:59]}  Kd6 {[%clk 0:00:09]} 40. Re6+ {[%clk 0:00:58]}  Kd7 {[%clk 0:00:09]} 41. Rf6 {[%clk 0:00:58]}  Rf3 {[%clk 0:00:07]} 42. c5 {[%clk 0:00:57]}  h5 {[%clk 0:00:07]} 43. Rf7+ {[%clk 0:00:56]}  Ke8 {[%clk 0:00:06]} 44. Rh7 {[%clk 0:00:55]}  f4 {[%clk 0:00:07]} 45. Rxh5 {[%clk 0:00:55]}  Rxe3+ {[%clk 0:00:07]} 46. Kd4 {[%clk 0:00:55]}  Re1 {[%clk 0:00:07]} 47. d6 {[%clk 0:00:56]}  f3 {[%clk 0:00:05]} 48. Rf5 {[%clk 0:00:56]}  Rd1+ {[%clk 0:00:04]} 49. Kc4 {[%clk 0:00:56]}  Rc1+ {[%clk 0:00:04]} 50. Kd5 {[%clk 0:00:56]}  Rc3 {[%clk 0:00:00]} 51. Kc6 {[%clk 0:00:55]} 1-0

[Event "January 9 Late 2024"]
[Site "https://www.chess.com"]
[Date "2024.01.09"]
[Round "1"]
[White "Feliz Dotel, Dewar Bienvenido"]
[Black "Brunner, Nicolas"]
[Result "0-1"]
[Board "217"]
[TimeControl "180+1"]
[WhiteFideId "6402801"]
[BlackFideId "620246"]
[WhiteElo "2164"]
[BlackElo "2575"]
[WhiteTeam "DOM"]
[BlackTeam "FRA"]
[WhiteClock "0:00:00"]
[BlackClock "0:00:03"]

1. Nf3 {[%clk 0:02:57]}  c5 {[%clk 0:02:59]} 2. g3 {[%clk 0:02:54]}  Nc6 {[%clk 0:02:59]} 3. d4 {[%clk 0:02:50]}  cxd4 {[%clk 0:02:57]} 4. Nxd4 {[%clk 0:02:51]}  g6 {[%clk 0:02:55]} 5. Bg2 {[%clk 0:02:45]}  Bg7 {[%clk 0:02:55]} 6. Nxc6 {[%clk 0:02:43]}  bxc6 {[%clk 0:02:55]} 7. e4 {[%clk 0:02:38]}  d6 {[%clk 0:02:54]} 8. O-O {[%clk 0:02:38]}  Rb8 {[%clk 0:02:50]} 9. c3 {[%clk 0:02:34]}  Nf6 {[%clk 0:02:49]} 10. e5 {[%clk 0:02:19]}  Nd5 {[%clk 0:02:45]} 11. exd6 {[%clk 0:01:36]}  Qxd6 {[%clk 0:02:43]} 12. Bxd5 {[%clk 0:01:36]}  cxd5 {[%clk 0:02:43]} 13. Qa4+ {[%clk 0:01:26]}  Bd7 {[%clk 0:02:41]} 14. Qxa7 {[%clk 0:01:26]}  O-O {[%clk 0:02:40]} 15. Nd2 {[%clk 0:01:22]}  Bh3 {[%clk 0:02:35]} 16. Re1 {[%clk 0:01:20]}  e5 {[%clk 0:02:34]} 17. Nb3 {[%clk 0:01:12]}  d4 {[%clk 0:02:28]} 18. Qc5 {[%clk 0:01:07]}  Qxc5 {[%clk 0:01:53]} 19. Nxc5 {[%clk 0:01:07]}  Rfc8 {[%clk 0:01:53]} 20. Ne4 {[%clk 0:01:02]}  h6 {[%clk 0:01:42]} 21. cxd4 {[%clk 0:00:58]}  exd4 {[%clk 0:01:41]} 22. b3 {[%clk 0:00:49]}  d3 {[%clk 0:01:36]} 23. Bf4 {[%clk 0:00:45]}  Ra8 {[%clk 0:01:28]} 24. Rac1 {[%clk 0:00:42]}  Rxc1 {[%clk 0:01:23]} 25. Rxc1 {[%clk 0:00:41]}  Rxa2 {[%clk 0:01:24]} 26. Nd2 {[%clk 0:00:31]}  g5 {[%clk 0:01:07]} 27. Be3 {[%clk 0:00:29]}  Bc3 {[%clk 0:00:58]} 28. Ne4 {[%clk 0:00:25]}  d2 {[%clk 0:00:31]} 29. Rd1 {[%clk 0:00:14]}  Bb4 {[%clk 0:00:09]} 30. f3 {[%clk 0:00:06]}  Rb2 {[%clk 0:00:05]} 31. Bxd2 {[%clk 0:00:05]}  Rxb3 {[%clk 0:00:04]} 32. Bxb4 {[%clk 0:00:04]}  Rxb4 {[%clk 0:00:04]} 33. Nf6+ {[%clk 0:00:03]}  Kg7 {[%clk 0:00:03]} 34. Nd5 {[%clk 0:00:00]}  Rb2 {[%clk 0:00:03]} 0-1